Cogmind - Beta 12 @@@ ROGUE MODE // 2023.03.03 @ 15:51:23 Player: btmk16 Result: Destroyed by Y-45 Defender with Beam Rifle Performance ------------- Evolutions (1) 500 Regions Visited (4) 800 Robots Destroyed (26) 130 Value Destroyed (423) 423 Prototype IDs (2) 40 Alien Tech Used (0) 0 Bonus (41) 41 TOTAL SCORE: 1934 Bonus ------- High Alert Combat Kills 16 Follower Combat Kills 25 Cogmind --------- Core Integrity 0/400 Matter 174/300 Energy 94/100 System Corruption 0% Temperature Cool (9) Movement Core (50) Location -9/Storage Parts ------- > --- POWER (1) -------- (None) > --- PROPULSION (3) --- (None) > --- UTILITY (3) ------ Structural Scanner Terrain Scan Processor > --- WEAPON (2) ------- (None) > --- INVENTORY (5) ---- Light Treads Compact Wheel Small Storage Unit Mini Grenade Launcher Peak State ------------ > --- POWER ------------ Light Ion Engine > --- PROPULSION ------- Improved Hover Unit Improved Hover Unit > --- UTILITY ---------- Structural Scanner Terrain Scan Processor Terrain Scan Processor > --- WEAPON ----------- Heavy Assault Rifle Improved Assault Rifle > --- INVENTORY -------- Light Treads Compact Wheel Small Storage Unit Grenade Launcher Grenade Launcher [Rating: 15] Favorites ----------- Power Ion Engine Engine Ion Engine Propulsion Light Treads Treads Light Treads Hover Unit Improved Hover Unit Flight Unit Flight Unit Utility Improved Terrain Scanner Device Improved Terrain Scanner Storage Medium Storage Unit Processor Terrain Scan Processor Weapon Assault Rifle Energy Gun Medium Laser Ballistic Gun Assault Rifle Ballistic Cannon Improved Light Cannon Launcher Grenade Launcher Build | -11 -10 -10 -9 -9 ------- Run | Jun Mat Min Mat Sto Slots Evolved 2 | . . . 2 . Power . | . . . . . Propulsion 1 | . . . 1 . Utility 1 | . . . 1 . Weapon . | . . . . . Parts Attached 33 | 8 6 2 7 10 Power 4 | 1 1 1 . 1 Engine 4 | 1 1 1 . 1 Core . | . . . . . Reactor . | . . . . . Propulsion 9 | 2 2 . 2 3 Treads 4 | 2 2 . . . Leg . | . . . . . Wheel . | . . . . . Hover 4 | . . . 1 3 Flight 1 | . . . 1 . Utility 8 | 2 2 . 2 2 Device 3 | 1 1 . . 1 Storage 2 | 1 1 . . . Processor 3 | . . . 2 1 Hackware . | . . . . . Protection . | . . . . . Artifact . | . . . . . Weapon 12 | 3 1 1 3 4 Energy Gun 1 | 1 . . . . Energy Cannon . | . . . . . Ballistic Gun 6 | 2 . 1 1 2 Ballistic Cannon 1 | . . . 1 . Launcher 4 | . 1 . 1 2 Special Weapon . | . . . . . Impact Weapon . | . . . . . Slashing Weapon . | . . . . . Piercing Weapon . | . . . . . Special Melee Weapon . | . . . . . Unidentified Prototypes 2 | . . . 2 . Parts Lost 13 | . . 3 2 8 Power 1 | . . . . 1 Propulsion 7 | . . 2 2 3 Utility 2 | . . 1 . 1 Weapon 3 | . . . . 3 Highest Loss Streak 8 | . . 3 2 8 To Critical Strikes . | . . . . . Average Slot Usage (%) 84 | . 98 100 36 66 Engine 10 | . 13 14 . 4 Treads 19 | . 27 28 . . Hover 3 | . . . 10 14 Device 11 | . 13 14 . 9 Storage 9 | . 14 14 . . Processor 5 | . . . 14 20 Energy Gun 6 | . 14 . . . Ballistic Gun 15 | . 14 27 1 15 Naked Turns 14 | . . 1 13 . Heaviest Build 21 | 15 21 21 4 10 Greatest Support 40 | 40 40 40 7 20 Greatest Overweight (x) 1 | . . . . 1 Average Overweight (x) . | . . . . . Largest Inventory Capacity 10 | 8 10 10 5 5 Average Capacity 8 | 6 9 9 5 5 Most Carried 10 | 6 10 10 5 5 Average Carried 7 | 4 9 9 4 4 Final Capacity 10 | 8 10 5 5 5 Final Carried 10 | 6 10 5 5 4 Class Distribution -------------------- 100% | Mutant Dominant Class ---------------- Mutant | -10/Materials Mutant | -10/Mines Mutant | -9/Materials Mutant | -9/Storage Resources | -11 -10 -10 -9 -9 ----------- Run | Jun Mat Min Mat Sto Matter Collected 567 | 186 204 56 30 91 Remotely . | . . . . . Salvage Created 485 | 23 124 66 17 255 Parts 40 | 4 6 4 6 20 Haulers Intercepted 2 | . 1 . . 1 Recyclers Shooed . | . . . . . Parts Field Recycled . | . . . . . Retrieved Matter . | . . . . . Parts Self-Destructed . | . . . . . Prevented . | . . . . . Kills | -11 -10 -10 -9 -9 ------- Run | Jun Mat Min Mat Sto Combat Hostiles Destroyed 18 | . 3 2 3 10 Guns 4 | . 3 . . 1 AOE 14 | . . 2 3 9 Classes Destroyed 7 | 1 4 . . 2 Worker 4 | . 1 . . 3 Tunneler 1 | 1 . . . . Hauler 2 | . 1 . . 1 Watcher 1 | . . . . 1 Swarmer 11 | . 2 . 3 6 Grunt 6 | . 1 2 . 3 Sentry 1 | . . . . 1 Best Kill Streak 11 | 1 4 2 3 11 Combat Bots Only 9 | . 3 2 3 9 Max Kills in Single Turn 3 | 1 1 1 2 3 Gunslinging . | . . . . . Exploded 3 | . . 1 2 3 Melee . | . . . . . Uniques/NPCs Destroyed . | . . . . . Combat | -11 -10 -10 -9 -9 -------- Run | Jun Mat Min Mat Sto Damage Taken 1624 | . 103 601 61 859 Core 647 | . 16 230 14 387 Absorbed by Shields . | . . . . . Core Remaining (%) 50 | 100 . 1 . . Volleys Fired 45 | 3 21 5 4 12 Largest 2 | 2 2 2 1 2 Hottest 70 | 70 70 50 39 46 Shots Fired 78 | 6 42 10 4 16 Gun 67 | 6 42 8 . 11 Cannon 2 | . . . 2 . Launcher 9 | . . 2 2 5 Special . | . . . . . Kinetic 45 | 3 21 8 2 11 Thermal 24 | 3 21 . . . Explosive 9 | . . 2 2 5 Electromagnetic . | . . . . . Robot Hit Streak 11 | 2 11 5 3 3 Robot Miss Streak 8 | 3 8 2 1 1 Penetration Max . | . . . . . Secondary Targets . | . . . . . Shots Hit Robots 47 | 2 26 7 3 9 Core Hits 43 | 1 8 6 4 24 Critical Kills . | . . . . . Critical Parts Destroyed . | . . . . . Critical Strikes 5 | . 5 . . . Burn 5 | . 5 . . . Melee Attacks . | . . . . . Impact . | . . . . . Slashing . | . . . . . Piercing . | . . . . . Sneak Attacks . | . . . . . Combat Hostiles . | . . . . . Follow-up Attacks . | . . . . . Damage Inflicted 1671 | 27 366 156 191 931 Guns 556 | 27 361 55 . 113 Cannons 23 | . . . 23 . Explosions 1081 | . . 101 168 812 Melee . | . . . . . Ramming 11 | . 5 . . 6 Kinetic 366 | 14 161 55 23 113 Thermal 213 | 13 200 . . . Explosive 1081 | . . 101 168 812 Electromagnetic . | . . . . . Impact . | . . . . . Slashing . | . . . . . Piercing . | . . . . . Highest Corruption . | . . . . . Average Corruption . | . . . . . Corruption Purged . | . . . . . Corruption Blocked . | . . . . . Overload Shots . | . . . . . Overflow Damage 15 | . . . 2 13 Projectiles . | . . . . . Explosions 15 | . . . 2 13 Melee . | . . . . . Knockbacks 1 | . . . 1 . Impact . | . . . . . Kinetic 1 | . . . 1 . Secondary . | . . . . . Self-Inflicted Damage 137 | . . 21 . 116 Shots 6 | . . 2 . 4 Rammed 4 | . 3 . . 1 Targets Rammed 4 | . 3 . . 1 Kicked . | . . . . . Crushed . | . . . . . Highest Temperature 84 | 27 84 9 . 29 Average Temperature 21 | 14 24 5 . 9 Received Heat Transfer 282 | . 12 30 9 231 Siege Activations . | . . . . . Robots Corrupted . | . . . . . Combat Hostiles . | . . . . . Parts Fried . | . . . . . Impact Corruptions . | . . . . . Robots Melted . | . . . . . Combat Hostiles . | . . . . . Parts Melted 5 | . 5 . . . Heat Transferred 999 | 37 962 . . . Parts Sabotaged . | . . . . . Parts Stolen . | . . . . . Parts Stripped . | . . . . . Power Chain Reactions . | . . . . . Missiles Intercepted . | . . . . . Alert | -11 -10 -10 -9 -9 ------- Run | Jun Mat Min Mat Sto Peak Influence 424 | 5 130 115 281 424 Initial 109 | . 3 . 9 109 Average 73 | . 41 75 109 179 Maximum Alert Level 2 | . . . 1 2 Low Security (%) 92 | 100 100 100 73 75 Level 1 6 | . . . 26 20 Level 2 . | . . . . 3 Level 3 . | . . . . . Level 4 . | . . . . . Level 5 . | . . . . . High Security . | . . . . . Max Security . | . . . . . Squads Dispatched 4 | . 1 . 1 2 Investigation 1 | . . . . 1 Extermination . | . . . . . Reinforcement 3 | . 1 . 1 1 Assault . | . . . . . Garrison . | . . . . . Intercept . | . . . . . Searches Triggered . | . . . . . Construction Impeded . | . . . . . Haulers Reinforced . | . . . . . Active Scanning Responses . | . . . . . Cargo Convoy Interrupts . | . . . . . Stealth | -11 -10 -10 -9 -9 --------- Run | Jun Mat Min Mat Sto Distress Signals 2 | . . . 1 1 Communications Jammed . | . . . . . Distress Signals . | . . . . . Times Spotted 55 | . 7 6 16 26 Peak Tracking Total 21 | . 4 3 12 21 Tactical Retreats 3 | . 1 . 1 1 Traps | -11 -10 -10 -9 -9 ------- Run | Jun Mat Min Mat Sto Traps Triggered 3 | . 2 . . 1 Indirectly . | . . . . . Trap Hack Attempts . | . . . . . Triggered . | . . . . . Disarmed . | . . . . . Reprogrammed . | . . . . . Reused . | . . . . . Traps Extracted . | . . . . . Installed . | . . . . . Triggered . | . . . . . Machines | -11 -10 -10 -9 -9 ---------- Run | Jun Mat Min Mat Sto Machines Disabled 2 | . . . 2 . Max in Single Turn 1 | . . . 1 . Machines Repaired . | . . . . . Machines Sabotaged . | . . . . . Overloaded Fab Kills . | . . . . . Hacking | -11 -10 -10 -9 -9 --------- Run | Jun Mat Min Mat Sto Machines Accessed 8 | . 3 . 2 3 Terminals 8 | . 3 . 2 3 Fabricators . | . . . . . Repair Stations . | . . . . . Recycling Units . | . . . . . Scanalyzers . | . . . . . Garrison Access . | . . . . . Total Hacks 13 | . 5 . 4 4 Successful 6 | . 1 . 4 1 Failed 7 | . 4 . . 3 Catastrophic 2 | . . . . 2 Database Lockouts . | . . . . . Manual 4 | . 2 . 1 1 Terminals 13 | . 5 . 4 4 Fabricators . | . . . . . Repair Stations . | . . . . . Recycling Units . | . . . . . Scanalyzers . | . . . . . Garrison Access . | . . . . . Terminal Hacks 5 | . 1 . 3 1 Open Door 1 | . . . . 1 Branch Access Points 1 | . . . 1 . Registered Prototypes 1 | . . . 1 . Zone Layout 2 | . 1 . 1 . Fabricator Hacks . | . . . . . Repair Station Hacks . | . . . . . Recycling Unit Hacks . | . . . . . Scanalyzer . | . . . . . Garrison Access Hacks . | . . . . . Unauthorized Hacks 1 | . . . 1 . Terminals 1 | . . . 1 . Botnet 1 | . . . 1 . Fabricators . | . . . . . Repair Stations . | . . . . . Recycling Units . | . . . . . Scanalyzers . | . . . . . Garrison Access . | . . . . . Data Cores Recovered 1 | . . . . 1 Used . | . . . . . Hacking Detections 5 | . 2 . . 3 Full Trace Events . | . . . . . Feedback Events . | . . . . . Feedback Blocked . | . . . . . Robot Schematics Acquired . | . . . . . Robots Built . | . . . . . Authchips . | . . . . . Time . | . . . . . Total Robot Build Rating . | . . . . . Part Schematics Acquired . | . . . . . Parts Built . | . . . . . Authchips . | . . . . . Time . | . . . . . Total Part Build Rating . | . . . . . Parts Repaired . | . . . . . Time . | . . . . . Parts Recycled . | . . . . . Recycled Matter . | . . . . . Retrieved Matter . | . . . . . Retrieved Components . | . . . . . Parts Scanalyzed . | . . . . . Part Schematics Acquired . | . . . . . Parts Damaged . | . . . . . Bothacking | -11 -10 -10 -9 -9 ------------ Run | Jun Mat Min Mat Sto Used RIF Installer . | . . . . . Robots Hacked . | . . . . . Non-combat . | . . . . . Combat . | . . . . . Robot Hacks Applied . | . . . . . Relay Couplers Released . | . . . . . Fabnet Peak Effective % . | . . . . . Robots Rewired . | . . . . . Allies Hacked . | . . . . . Hacks Repelled . | . . . . . Allies | -11 -10 -10 -9 -9 -------- Run | Jun Mat Min Mat Sto Total Allies 3 | . . 3 . . Largest Group 3 | . . 3 . . Highest-Rated Group 40 | . . 40 . . Highest-Rated Ally 16 | . . 16 . . Total Orders . | . . . . . Ally Attacks 5 | . . 5 . . Total Damage 41 | . . 41 . . Kills 1 | . . 1 . . Allies Corrupted . | . . . . . Allies Melted . | . . . . . Intel | -11 -10 -10 -9 -9 ------- Run | Jun Mat Min Mat Sto Robot Analysis Total . | . . . . . Derelict Logs Recovered 1 | . . 1 . . Drone Launches . | . . . . . Drone Recoveries . | . . . . . Exploration | -11 -10 -10 -9 -9 ------------- Run | Jun Mat Min Mat Sto Turns Passed 1282 | 117 555 253 179 178 Spaces Moved 1009 | 63 289 148 295 214 Core 203 | 8 . 3 118 74 Treads 489 | 55 289 145 . . Legs . | . . . . . Wheels . | . . . . . Hover 193 | . . . 53 140 Flight 124 | . . . 124 . Fastest Speed 40 | 50 160 50 40 50 Average Speed 103 | 146 160 157 47 55 Slowest Speed 160 | 160 160 160 60 100 Overloaded Moves . | . . . . . Propulsion Burnouts . | . . . . . Robots Hopped 2 | . . . 2 . Cave-ins Triggered . | . . . . . Exploration Rate (%) 33 | 5 52 37 42 32 Regions Visited 4 Branch Regions 2 Pre-discovered Areas . | . . . . . Known Exits Taken 1 | . . . 1 . Unknown Exits Taken 3 | 1 1 1 . . Scrap Searched 1 | . . 1 . . Spaces Dug . | . . . . . Terrain Destroyed 71 | . . 17 7 47 Melee . | . . . . . Projectile . | . . . . . AOE 71 | . . 17 7 47 Terrain Rammed . | . . . . . Walls Destroyed . | . . . . . Machines Disabled . | . . . . . Actions | -11 -10 -10 -9 -9 --------- Run | Jun Mat Min Mat Sto Total 1152 | 78 336 157 324 257 Wait 43 | . 11 2 18 12 Move 1001 | 62 288 147 290 214 Hop 2 | . . . 2 . Pick Up 12 | 5 5 . . 2 Fast Attach 25 | 7 4 . 7 7 Attach 3 | . . . 1 2 Detach 3 | . . . 1 2 Swap 6 | 1 2 2 . 1 Drop 8 | . 2 1 1 4 Fire 45 | 3 21 5 4 12 Melee . | . . . . . Ram 1 | . . . . 1 Kick . | . . . . . Crush 3 | . 3 . . . Escape Stasis . | . . . . . Rewire . | . . . . . Trap . | . . . . . Miscellaneous . | . . . . . Route ------- -11/Junkyard -10/Materials (discovered 2 exits: *Mat / [*Min]) -10/Mines -9/Materials (discovered 3 exits: *Min / *Sto x2) -9/Storage History --------- Turn | Location | Event 5 | -11/Junkyard | Discovered new exit (range 15) 118 | -11/Junkyard | Entered Materials 306 | -10/Materials | Build established: Mutant 370 | -10/Materials | Discovered new exit (range 16) 632 | -10/Materials | Discovered new exit (range 16) 673 | -10/Materials | Entered Mines 734 | -10/Mines | Assisted by bots powering up and referring to "LRC-V3" 817 | -10/Mines | Learned Materials stockpile data 911 | -10/Mines | Assembled infested the area 911 | -10/Mines | Discovered new exit (range 6) 920 | -10/Mines | Core integrity fell below 50% 924 | -10/Mines | Core integrity fell below 20% 925 | -10/Mines | Released all parts (4) 926 | -10/Mines | Entered Materials 926 | -9/Materials | Evolved 2 slots: Propulsion x1, Utility x1 955 | -9/Materials | Lost 3 parts (2n1u) 987 | -9/Materials | Identified exit to Mines 987 | -9/Materials | Identified exit to Storage 1105 | -9/Materials | Entered Storage 1274 | -9/Storage | Core integrity fell below 50% 1281 | -9/Storage | Core integrity fell below 20% 1283 | -9/Storage | Destroyed by Y-45 Defender with Beam Rifle Last Messages --------------- 01264_ K-01 Serf collects debris. 01267_ S-10 Pest destroyed. 01267_ K-01 Serf destroyed. 01267_ S-10 Pest destroyed. 01269_ K-01 Serf destroyed. 01271_ S-10 Pest destroyed. 01273_ G-34 Mercenary destroyed. 01273_ Mni. Grenade Launcher destroyed. 01273_ Destroyed Mni. Grenade Launcher. 01273_ S-10 Pest destroyed. 01274_ The unstable cave ceiling collapses. 01274_ Critical hit (Burn: +37). 01275_ The unstable cave ceiling collapses. 01277_ S-10 Pest destroyed. 01277_ G-34 Mercenary destroyed. 01278_ Imp. Targeting Computer destroyed. 01281_ Slammed into G-34 Mercenary. 01281_ Destabilizing: System interference. 01281_ Structural Scanner temporarily disabled. 01283_ U-05 Engineer lays Concrete. Map ----- +----------------------------------------------------+ | # ????????????????????????????????? | | # ????????????????????????????????? | | # ????????????????????????????????? | | # #####?????????????????? | | #######+######### ?????????????????? | | ????????????????? | | #####??????????????????????? | | ###### #####??????????????????????? | | ###### ##??????????????????###????? | | ????## # ??? ???????????#####???? | | ????## # ?"" ? ##???????# #???? | | ????## # """ ##??###### #???? | | ## ## + """ ##??####### ##???? | | ##""## # " " ##??## ##???? | | #T + # ? "G" ##??## ##???? | | ## # # """ ##??## ##???? | | ###### + ##??## ###### | | ###### ######## ###??## ###### | | ###### ############??## ## ## | | # ##???????????? # g # | | " # # ???????????? # | | "" # # ???????????? ## | | ?"" " + ???????????? ## Y % # | | ??" # ##???????????? ## Y # | | ??" # ##???????????? # s g # | | """ / ##???????????? + @Y % # | | #^^##???????????? #!Yg ## | | ###### !##??????### ##u## ##### | | ######*%################# ########## | | ###=%########## ### #######??? | | !=]%]* = ##??????? | | *!!]]= " ##?? | | #######/####### ### # ##?? | | ######## T########### # ##?? | | ???????###"###? + ##T ##?? | | ???????## ##???????? #k #######?? | | ??????????????????????? # #######?? | | ??????????????????????? # ##??????? | | ??????????????????????? # ##??????? | | ??????????????????????? # ##??????? | | ??????????????????????? # ##??????? | | ???????????????????????## ##??????? | | ????????????????????????#+###??????? | | ???????????????????????? ??????? | | ???????????????????????????????????? | | ???????????????????????????????????? | | ???????????????????????????????????? | | ???????????????????????????????????? | | ???????????????????????????????????? | | ???????????????????????????????????? | +----------------------------------------------------+ Best States ------------- Heat Dissipation 28 Energy Generation 10 Energy Capacity 250 Matter Stores 300 Matter Capacity 300 Sight Range 16 Terrain Scan Range 16 Terrain Scan Density 160 Evasion (%) 62 Targeting Accuracy 6 Recoil Reduction 2 Item Schematics ----------------- None Robot Schematics ------------------ None Fabricated ------------ Nothing Alien Tech Used ----------------- None Achievements -------------- None Challenges ------------ None Game ------ Seed CloakInsulationActivator Manual? 0 Play Time 00:13:20 Cumulative 543.5 hours Start 2023.03.03 @ 15:39:18 End 2023.03.03 @ 15:51:23 Sessions 1 Manual Loads 0 Difficulty Rogue Special Mode None Game No. 605 Rogue 604 Adventurer 0 Explorer 1 Win Type - Total 22 Types 15/0/4/3/0/0/0/0/0 Lore% 80 Gallery% 90 Achievement% 74 Wizard Run 0 Options --------- ASCII 0 Keyboard 1 Movement Vi Keybinds 0 Fullscreen 1 Font 18/SmallcapsGlow Map View 76x50 Tactical HUD 1 Map Filters NONE Filters NONE Steam 1 RUN: 9a38388a-4452-4877-8586-883d78662ad3